Cogmind - Beta 10.2 @@@ ROGUE MODE // 2021.08.30 @ 01:05:28 Player: Savant Result: Destroyed by as-29400 with Assembled Blade Performance ------------- Evolutions (0) 0 Regions Visited (2) 400 Robots Destroyed (13) 65 Value Destroyed (280) 280 Prototype IDs (0) 0 Alien Tech Used (0) 0 Bonus (0) 0 TOTAL SCORE: 745 Bonus ------- None Cogmind --------- Core Integrity 0/250 Matter 246/300 Energy 39/100 System Corruption 2% Temperature Cool (0) Movement Core (50) Location -10/Mines Parts ------- > --- POWER (1) -------- (None) > --- PROPULSION (2) --- (None) > --- UTILITY (2) ------ Weight Redist. System Weight Redist. System > --- WEAPON (2) ------- Battle Cannon > --- INVENTORY (4) ---- Light Ion Engine Medium Storage Unit Weight Redist. System Grenade Launcher Peak State ------------ > --- POWER ------------ Ion Engine > --- PROPULSION ------- (None) > --- UTILITY ---------- Weight Redist. System Weight Redist. System > --- WEAPON ----------- EM Pulse Gun Particle Gun > --- INVENTORY -------- Light Ion Engine Medium Storage Unit Weight Redist. System Grenade Launcher [Rating: 8] Favorites ----------- Power Ion Engine Engine Ion Engine Propulsion None Utility Weight Redist. System Device Weight Redist. System Weapon EM Pulse Gun Energy Gun EM Pulse Gun Ballistic Gun Assault Rifle Ballistic Cannon Battle Cannon Launcher Grenade Launcher Special Weapon Mining Laser Build | -11 -10 -10 ------- Run | Scr Mat Min Slots Evolved . | . . . Power . | . . . Propulsion . | . . . Utility . | . . . Weapon . | . . . Parts Attached 18 | 1 14 3 Power 1 | . 1 . Engine 1 | . 1 . Core . | . . . Reactor . | . . . Propulsion . | . . . Treads . | . . . Leg . | . . . Wheel . | . . . Hover . | . . . Flight . | . . . Utility 2 | . 2 . Device 2 | . 2 . Storage . | . . . Processor . | . . . Hackware . | . . . Protection . | . . . Artifact . | . . . Weapon 15 | 1 11 3 Energy Gun 4 | 1 2 1 Energy Cannon . | . . . Ballistic Gun 5 | . 5 . Ballistic Cannon 1 | . . 1 Launcher 2 | . 1 1 Special Weapon 3 | . 3 . Impact Weapon . | . . . Slashing Weapon . | . . . Piercing Weapon . | . . . Special Melee Weapon . | . . . Unidentified Prototypes . | . . . Parts Lost 4 | . 1 3 Power 1 | . . 1 Propulsion . | . . . Utility . | . . . Weapon 3 | . 1 2 Highest Loss Streak 3 | . 1 3 Average Slot Usage (%) 66 | . 66 68 Engine 12 | . 12 12 Device 26 | . 25 28 Energy Gun 15 | . 12 25 Ballistic Gun 8 | . 10 . Special Weapon 2 | . 2 . Naked Turns . | . . . Heaviest Build 10 | 2 10 10 Greatest Support 15 | 3 15 15 Greatest Overweight (x) . | . . . Average Overweight (x) . | . . . Largest Inventory Capacity 4 | 4 4 4 Average Capacity 4 | 4 4 4 Most Carried 4 | 3 4 4 Average Carried 3 | 2 3 4 Final Capacity 4 | 4 4 4 Final Carried 4 | 3 4 4 Class Distribution -------------------- 100% | Mutant Dominant Class ---------------- Mutant | -10/Materials Mutant | -10/Mines Resources | -11 -10 -10 ----------- Run | Scr Mat Min Matter Collected 443 | 210 190 43 Remotely . | . . . Salvage Created 321 | . 240 81 Parts 26 | . 17 9 Haulers Intercepted . | . . . Recyclers Shooed . | . . . Parts Field Recycled . | . . . Retrieved Matter . | . . . Parts Self-Destructed . | . . . Prevented . | . . . Kills | -11 -10 -10 ------- Run | Scr Mat Min Combat Hostiles Destroyed 12 | . 8 4 Guns 3 | . 3 . Cannons 1 | . . 1 AOE 8 | . 5 3 Classes Destroyed 5 | . 3 2 Worker 1 | . 1 . Recycler 1 | . . 1 Swarmer 6 | . 3 3 Grunt 5 | . 5 . Assembled 1 | . . 1 Best Kill Streak 8 | . 8 4 Combat Bots Only 7 | . 7 3 Max Kills in Single Turn 2 | . 2 2 Gunslinging . | . . . Exploded 2 | . 2 2 Melee . | . . . Uniques/NPCs Destroyed . | . . . Combat | -11 -10 -10 -------- Run | Scr Mat Min Damage Taken 638 | . 355 283 Core 258 | . 115 143 Absorbed by Shields . | . . . Core Remaining (%) 100 | 100 . . Volleys Fired 34 | . 27 7 Largest 2 | . 2 2 Hottest 140 | . 140 105 Shots Fired 46 | . 38 8 Gun 32 | . 30 2 Cannon 4 | . . 4 Launcher 6 | . 4 2 Special 4 | . 4 . Kinetic 23 | . 19 4 Thermal 5 | . 4 1 Explosive 6 | . 4 2 Electromagnetic 12 | . 11 1 Robot Hit Streak 9 | . 9 6 Robot Miss Streak 3 | . 1 3 Penetration Max . | . . . Secondary Targets . | . . . Shots Hit Robots 26 | . 23 3 Core Hits 18 | . 13 5 Critical Hits . | . . . Critical Kills . | . . . Critical Parts Destroyed . | . . . Melee Attacks . | . . . Impact . | . . . Slashing . | . . . Piercing . | . . . Sneak Attacks . | . . . Combat Hostiles . | . . . Follow-up Attacks . | . . . Damage Inflicted 756 | . 547 209 Guns 281 | . 281 . Cannons 24 | . . 24 Explosions 451 | . 266 185 Melee . | . . . Ramming . | . . . Kinetic 213 | . 189 24 Thermal . | . . . Explosive 451 | . 266 185 Electromagnetic 92 | . 92 . Impact . | . . . Slashing . | . . . Piercing . | . . . Highest Corruption 2 | . 2 2 Average Corruption 2 | . 2 2 Corruption Purged . | . . . Effects 1 | . . 1 Message Errors 1 | . . 1 Overload Shots . | . . . Overflow Damage . | . . . Projectiles . | . . . Explosions . | . . . Melee . | . . . Knockbacks . | . . . Impact . | . . . Kinetic . | . . . Secondary . | . . . Self-Inflicted Damage 67 | . 67 . Shots 2 | . 2 . Rammed . | . . . Targets Rammed . | . . . Kicked . | . . . Crushed . | . . . Highest Temperature 45 | . 45 30 Average Temperature 18 | . 19 16 Received Heat Transfer 135 | . 135 . Siege Activations . | . . . Robots Corrupted . | . . . Combat Hostiles . | . . . Parts Fried . | . . . Impact Corruptions . | . . . Robots Melted . | . . . Combat Hostiles . | . . . Parts Melted . | . . . Heat Transferred . | . . . Parts Sabotaged . | . . . Parts Stolen . | . . . Parts Stripped . | . . . Power Chain Reactions . | . . . Missiles Intercepted . | . . . Alert | -11 -10 -10 ------- Run | Scr Mat Min Peak Influence 302 | . 302 207 Initial 117 | . . 117 Average 101 | . 86 180 Maximum Alert Level 1 | . 1 1 Low Security (%) 79 | 100 89 37 Level 1 20 | . 10 62 Level 2 . | . . . Level 3 . | . . . Level 4 . | . . . Level 5 . | . . . High Security . | . . . Max Security . | . . . Squads Dispatched 2 | . 2 . Investigation 1 | . 1 . Extermination . | . . . Reinforcement 1 | . 1 . Assault . | . . . Garrison . | . . . Intercept . | . . . Construction Impeded . | . . . Haulers Reinforced . | . . . Stealth | -11 -10 -10 --------- Run | Scr Mat Min Distress Signals . | . . . Communications Jammed . | . . . Distress Signals . | . . . Times Spotted 26 | . 12 14 Peak Tracking Total 18 | . 4 18 Tactical Retreats 2 | . . 2 Traps | -11 -10 -10 ------- Run | Scr Mat Min Traps Triggered 1 | . 1 . Indirectly . | . . . Trap Hack Attempts . | . . . Triggered . | . . . Disarmed . | . . . Reprogrammed . | . . . Reused . | . . . Traps Extracted . | . . . Installed . | . . . Triggered . | . . . Machines | -11 -10 -10 ---------- Run | Scr Mat Min Machines Disabled 3 | . 2 1 Max in Single Turn 1 | . 1 1 Machines Sabotaged . | . . . Garrisons Compromised . | . . . Overloaded Fab Kills . | . . . Fab Network Shutdowns . | . . . Hacking | -11 -10 -10 --------- Run | Scr Mat Min Machines Accessed 5 | . 5 . Terminals 5 | . 5 . Fabricators . | . . . Repair Stations . | . . . Recycling Units . | . . . Scanalyzers . | . . . Garrison Access . | . . . Total Hacks 25 | . 25 . Successful 12 | . 12 . Failed 13 | . 13 . Catastrophic 1 | . 1 . Database Lockouts . | . . . Manual 18 | . 18 . Terminals 25 | . 25 . Fabricators . | . . . Repair Stations . | . . . Recycling Units . | . . . Scanalyzers . | . . . Garrison Access . | . . . Terminal Hacks 4 | . 4 . Branch Access Points 1 | . 1 . Transport Status 1 | . 1 . Hauler Manifests 1 | . 1 . Zone Layout 1 | . 1 . Fabricator Hacks . | . . . Repair Station Hacks . | . . . Recycling Unit Hacks . | . . . Scanalyzer . | . . . Garrison Access Hacks . | . . . Unauthorized Hacks 8 | . 8 . Terminals 8 | . 8 . Track 3 | . 3 . Assimilate 1 | . 1 . Botnet 3 | . 3 . Operators 1 | . 1 . Fabricators . | . . . Repair Stations . | . . . Recycling Units . | . . . Scanalyzers . | . . . Garrison Access . | . . . Data Cores Recovered . | . . . Used . | . . . Hacking Detections 5 | . 5 . Full Trace Events 1 | . 1 . Feedback Events . | . . . Feedback Blocked . | . . . Robot Schematics Acquired . | . . . Robots Built . | . . . Matter . | . . . Time . | . . . Total Robot Build Rating . | . . . Part Schematics Acquired . | . . . Parts Built . | . . . Matter . | . . . Time . | . . . Total Part Build Rating . | . . . Parts Repaired . | . . . Time . | . . . Parts Recycled . | . . . Recycled Matter . | . . . Retrieved Matter . | . . . Retrieved Components . | . . . Parts Scanalyzed . | . . . Part Schematics Acquired . | . . . Parts Damaged . | . . . Bothacking | -11 -10 -10 ------------ Run | Scr Mat Min Used RIF Installer . | . . . Robots Hacked . | . . . Non-combat . | . . . Combat . | . . . Robot Hacks Applied . | . . . Relay Couplers Released . | . . . Robots Rewired . | . . . Allies Hacked . | . . . Hacks Repelled . | . . . Allies | -11 -10 -10 -------- Run | Scr Mat Min Total Allies . | . . . Largest Group . | . . . Highest-Rated Group . | . . . Highest-Rated Ally . | . . . Total Orders . | . . . Ally Attacks . | . . . Total Damage . | . . . Kills . | . . . Allies Corrupted . | . . . Allies Melted . | . . . Intel | -11 -10 -10 ------- Run | Scr Mat Min Robot Analysis Total . | . . . Derelict Logs Recovered . | . . . Drone Launches . | . . . Drone Recoveries . | . . . Exploration | -11 -10 -10 ------------- Run | Scr Mat Min Turns Passed 521 | 20 398 103 Spaces Moved 645 | 31 446 168 Core 645 | 31 446 168 Treads . | . . . Legs . | . . . Wheels . | . . . Hover . | . . . Flight . | . . . Fastest Speed 50 | 50 50 50 Average Speed 50 | 50 50 50 Slowest Speed 50 | 50 50 50 Overloaded Moves . | . . . Propulsion Burnouts . | . . . Robots Hopped . | . . . Cave-ins Triggered . | . . . Exploration Rate (%) 46 | 3 83 53 Regions Visited 2 Branch Regions 1 Pre-discovered Areas . | . . . Known Exits Taken 1 | . 1 . Unknown Exits Taken 1 | 1 . . Scrap Searched . | . . . Spaces Dug 17 | . 17 . Terrain Destroyed 46 | . 25 21 Melee . | . . . Projectile 5 | . 4 1 AOE 41 | . 21 20 Terrain Rammed . | . . . Walls Destroyed . | . . . Machines Disabled . | . . . Actions | -11 -10 -10 --------- Run | Scr Mat Min Total 783 | 34 571 178 Wait 73 | . 73 . Move 643 | 30 445 168 Hop . | . . . Pick Up 9 | 3 6 . Fast Attach 7 | 1 5 1 Attach 2 | . 2 . Detach . | . . . Swap 9 | . 7 2 Drop 6 | . 6 . Fire 34 | . 27 7 Melee . | . . . Ram . | . . . Kick . | . . . Crush . | . . . Escape Stasis . | . . . Rewire . | . . . Trap . | . . . Miscellaneous . | . . . Route ------- -11/Scrapyard -10/Materials (discovered 3 exits: [*Mat x2] / *Min) -10/Mines (discovered 1 exit: [*Mat]) History --------- Turn | Location | Event 7 | -11/Scrapyard | Discovered new exit (range 16) 21 | -11/Scrapyard | Entered Materials 142 | -10/Materials | Discovered new exit (range 6) 288 | -10/Materials | Identified exit to Mines 303 | -10/Materials | Discovered new exit (range 3) 329 | -10/Materials | Build established: Mutant 418 | -10/Materials | Destroyed 7 combat bots 419 | -10/Materials | Entered Mines 453 | -10/Mines | Discovered new exit (range 10) 468 | -10/Mines | Assembled infested the area 473 | -10/Mines | Assisted by a Guerilla fighting off Assembled 486 | -10/Mines | Core integrity fell below 50% 506 | -10/Mines | A weapon hastily lodged in a ceiling crevice suddenly fell to the ground 520 | -10/Mines | Core integrity fell below 20% 522 | -10/Mines | Destroyed by as-29400 with Assembled Blade Last Messages --------------- 00450_ K-01 Serf collects debris. 00452_ U-05 Engineer builds a Wall. 00453_ EXIT=FOUND 00453_ Acquired 43 matter. 00453_ K-01 Serf collects debris. 00456_ U-05 Engineer lays Concrete. 00468_ ALERT: Infestation in the mines, dispatching Demolisher response squad. 00472_ O1-HDU(h): "I'll hold them off! Go on ahead or try to find another way!" 00473_ A derelict emerges from the shadows: "You need to get out of here! I've been tracking a group of Assembled to figure out where they're coming from, and they're closing on this area, come on!" 00476_ U-05 Engineer builds a Wall. 00500_ JFDLFOOQEGHY,AEBLKDLSJGASU0#D0 WB< 00506_ A Battle Cannon has been hastily shoved under some rubble with a note attached: "To battle!" 00511_ Ion Engine destroyed. 00511_ EM Pulse Gun destroyed. 00513_ Acquired Battle Cannon. 00514_ Particle Gun destroyed. 00515_ as-26554 destroyed. Map ----- +----------------------------------------------------+ | ?????### #?## ## ##??## ##?????#### | | ????? ## #### #????## | | ?????? ###### | | ??????# | | ??????# """ | | ???????? ## """ ### ###### | | ???????????## """ ##?## ##### #????## | | ????????????## ##???# ##???## ##?????# | | ?????????????## ##????# ##?????? ##?????? | | ??????????????## ##?????####??????? ##??????? | | ???????????????# #####??????????????# #??????? | | ???????????????# #??????????????? #??????? | | ???????????????# ### #?????###??????? #???????## | | ???????????????# #?# ###### ##????????????????# | | ?????????????? #?# #????????????????# | | ?????????????######?####### #????????????????# | | ?????????????????????????##a ##????????????????? | | ????????????????????????## #?????????????????? | | ????????????????????????# #?????????????????? | | ???????????????????????## ##??????????????????? | | ???????????????????????# ##???????????????????? | | ??????????????????????## ##?????????##?????????? | | ?????????????????????## ###### #?????????? | | ????????????????????## a #????????? | | ????????????????????# % #### ????????? | | ????????????????????## a@ ##????????????????????? | | ?????????????????????#;#####?????????????????????? | | ?????????????????????????????????????????????????? | | ?????????????????????????????????????????????????? | | | | | | | | | | | | | | | | | | | | | | | | | | | | | | | | | | | | | | | | | | | +----------------------------------------------------+ Best States ------------- Heat Dissipation 25 Energy Generation 10 Energy Capacity 250 Matter Stores 300 Matter Capacity 300 Sight Range 16 Terrain Scan Density 10 Additional Mass Support 12 Evasion (%) 50 Item Schematics ----------------- None Robot Schematics ------------------ None Fabricated ------------ Nothing Alien Tech Used ----------------- None Achievements -------------- None Challenges ------------ None Game ------ Seed PowerChargeCasing Manual? 0 Play Time 00:13:54 Cumulative 170.8 hours Start 2021.08.30 @ 00:53:26 End 2021.08.30 @ 01:05:28 Sessions 1 Manual Loads 0 Difficulty Rogue Special Mode None Game No. 51 Rogue 51 Adventurer 0 Explorer 0 Win Type - Total 8 Types 7/0/1/0/0/0/0/0/0 Lore% 75 Gallery% 84 Achievement% 66 Wizard Run 0 Options --------- ASCII 0 Keyboard 0 Movement Numpad Keybinds 0 Fullscreen 1 Font 14/SmallcapsGlow Map View 84x54 Tactical HUD 1 Map Filters NONE Filters NONE Steam 1 RUN: e1bc0d9d-4def-4574-bbb6-1c64fca3b206